[Event "Early-Titled-Tuesday-Blitz-February-20-2024"]
[Site "Chess.com"]
[Date "2024.02.20"]
[Round "4"]
[White "Kildepiotr"]
[Black "patzersame"]
[Result "1/2-1/2"]
[WhiteElo "2673"]
[BlackElo "2399"]
[TimeControl "180+1"]
[EndTime "8:39:26 PST"]
[Termination "Game drawn by repetition"]

1. Nf3 {[%clk 0:02:56.7]} 1... Nf6 {[%clk 0:03:00.1]} 2. g3 {[%clk 0:02:57]}
2... e6 {[%clk 0:03:00.6]} 3. Bg2 {[%clk 0:02:57.6]} 3... d5 {[%clk 0:03:01.2]}
4. O-O {[%clk 0:02:58.4]} 4... Be7 {[%clk 0:03:01.9]} 5. d3 {[%clk 0:02:59.3]}
5... O-O {[%clk 0:03:02.5]} 6. Nbd2 {[%clk 0:03:00.2]} 6... c5 {[%clk
0:03:02.9]} 7. e4 {[%clk 0:03:01]} 7... dxe4 {[%clk 0:03:02.7]} 8. dxe4 {[%clk
0:03:01.9]} 8... Nc6 {[%clk 0:03:03]} 9. c3 {[%clk 0:03:02.6]} 9... b6 {[%clk
0:03:02]} 10. Qe2 {[%clk 0:03:02.7]} 10... Bb7 {[%clk 0:03:01.9]} 11. Rd1 {[%clk
0:03:01.4]} 11... Qc8 {[%clk 0:02:57.8]} 12. Nf1 {[%clk 0:03:01.2]} 12... Rd8
{[%clk 0:02:56.1]} 13. Bg5 {[%clk 0:03:00.8]} 13... h6 {[%clk 0:02:52.8]} 14.
Bxf6 {[%clk 0:03:00.8]} 14... Bxf6 {[%clk 0:02:53.7]} 15. Ne3 {[%clk 0:02:53.4]}
15... Ne5 {[%clk 0:02:45]} 16. Nxe5 {[%clk 0:02:53]} 16... Bxe5 {[%clk
0:02:45.9]} 17. f3 {[%clk 0:02:53]} 17... Qc7 {[%clk 0:02:43.6]} 18. f4 {[%clk
0:02:51.5]} 18... Bf6 {[%clk 0:02:42.6]} 19. e5 {[%clk 0:02:51.8]} 19... Be7
{[%clk 0:02:41.8]} 20. Nc4 {[%clk 0:02:47.1]} 20... Rxd1+ {[%clk 0:02:30]} 21.
Rxd1 {[%clk 0:02:46.3]} 21... Rd8 {[%clk 0:02:25.7]} 22. Rxd8+ {[%clk
0:02:46.2]} 22... Bxd8 {[%clk 0:02:25.8]} 23. Nd6 {[%clk 0:02:38.1]} 23... Bxg2
{[%clk 0:02:16.6]} 24. Qxg2 {[%clk 0:02:39]} 24... Be7 {[%clk 0:02:17.1]} 25.
Qa8+ {[%clk 0:02:38.9]} 25... Qd8 {[%clk 0:01:54.2]} 26. Qxd8+ {[%clk
0:02:34.5]} 26... Bxd8 {[%clk 0:01:55.1]} 27. a4 {[%clk 0:02:29.5]} 27... a6
{[%clk 0:01:52.3]} 28. Kf2 {[%clk 0:02:26.2]} 28... Bc7 {[%clk 0:01:45.1]} 29.
Ne4 {[%clk 0:02:18]} 29... Kf8 {[%clk 0:01:42.3]} 30. Ke3 {[%clk 0:02:11.6]}
30... Ke7 {[%clk 0:01:41.7]} 31. b4 {[%clk 0:02:07.7]} 31... cxb4 {[%clk
0:01:39.4]} 32. cxb4 {[%clk 0:02:08.6]} 32... f6 {[%clk 0:01:36.6]} 33. exf6+
{[%clk 0:02:01.3]} 33... gxf6 {[%clk 0:01:37.5]} 34. b5 {[%clk 0:02:00.5]} 34...
axb5 {[%clk 0:01:35.7]} 35. axb5 {[%clk 0:02:00.5]} 35... Bd6 {[%clk 0:01:28.8]}
36. g4 {[%clk 0:01:50.9]} 36... f5 {[%clk 0:01:00.5]} 37. Nxd6 {[%clk
0:01:20.3]} 37... Kxd6 {[%clk 0:01:00.6]} 38. g5 {[%clk 0:01:20.9]} 38... hxg5
{[%clk 0:01:00.9]} 39. fxg5 {[%clk 0:01:21.8]} 39... e5 {[%clk 0:00:58.7]} 40.
h4 {[%clk 0:01:21.1]} 40... Ke6 {[%clk 0:00:31.9]} 41. h5 {[%clk 0:01:21]} 41...
Kf7 {[%clk 0:00:31.9]} 42. Kf3 {[%clk 0:01:15.4]} 42... Kg7 {[%clk 0:00:31.5]}
43. Kg3 {[%clk 0:01:15.8]} 43... Kh7 {[%clk 0:00:31.2]} 44. Kf3 {[%clk
0:00:57.1]} 44... Kg7 {[%clk 0:00:31]} 45. Ke3 {[%clk 0:00:54.5]} 45... Kh7
{[%clk 0:00:30.2]} 46. Kd3 {[%clk 0:00:55]} 46... Kg7 {[%clk 0:00:29.9]} 47. Kc4
{[%clk 0:00:54.8]} 47... f4 {[%clk 0:00:29.5]} 48. Kd3 {[%clk 0:00:55.2]} 48...
f3 {[%clk 0:00:29.4]} 49. Ke3 {[%clk 0:00:55.8]} 49... e4 {[%clk 0:00:29.8]} 50.
Kf2 {[%clk 0:00:56.1]} 50... Kf7 {[%clk 0:00:28.8]} 51. Kg3 {[%clk 0:00:56.5]}
51... Ke6 {[%clk 0:00:21.7]} 52. h6 {[%clk 0:00:53.6]} 52... Kf7 {[%clk
0:00:21.8]} 53. h7 {[%clk 0:00:53.5]} 53... Kg7 {[%clk 0:00:21.8]} 54. g6 {[%clk
0:00:54.2]} 54... Kh8 {[%clk 0:00:21.3]} 55. Kf2 {[%clk 0:00:42.9]} 55... Kg7
{[%clk 0:00:21.4]} 56. Ke3 {[%clk 0:00:43.3]} 56... Kh8 {[%clk 0:00:21.6]} 57.
Kf2 {[%clk 0:00:40.7]} 57... Kg7 {[%clk 0:00:21.5]} 58. Ke3 {[%clk 0:00:41.3]}
58... Kh8 {[%clk 0:00:21.6]} 59. Kf2 {[%clk 0:00:41.8]} 1/2-1/2

[Event "Early-Titled-Tuesday-Blitz-February-20-2024"]
[Site "Chess.com"]
[Date "2024.02.20"]
[Round "4"]
[White "ploxoi"]
[Black "ansko1999"]
[Result "0-1"]
[WhiteElo "2453"]
[BlackElo "2698"]
[TimeControl "180+1"]
[EndTime "8:39:27 PST"]
[Termination "ansko1999 won by resignation"]

1. d4 {[%clk 0:03:00.9]} 1... d6 {[%clk 0:02:59.2]} 2. Nf3 {[%clk 0:03:00.6]}
2... g6 {[%clk 0:02:57.6]} 3. c4 {[%clk 0:03:00.7]} 3... Bg7 {[%clk 0:02:57.4]}
4. e4 {[%clk 0:03:00.7]} 4... Nf6 {[%clk 0:02:51.1]} 5. Nc3 {[%clk 0:03:00.1]}
5... O-O {[%clk 0:02:51.7]} 6. Be2 {[%clk 0:03:00.5]} 6... e5 {[%clk 0:02:49.2]}
7. d5 {[%clk 0:03:00.6]} 7... a5 {[%clk 0:02:46.4]} 8. O-O {[%clk 0:02:59.6]}
8... Na6 {[%clk 0:02:45.7]} 9. Be3 {[%clk 0:02:54.3]} 9... Nd7 {[%clk
0:02:26.8]} 10. Nd2 {[%clk 0:02:53.9]} 10... f5 {[%clk 0:02:25]} 11. f3 {[%clk
0:02:54.4]} 11... f4 {[%clk 0:02:12.5]} 12. Bf2 {[%clk 0:02:54.1]} 12... g5
{[%clk 0:02:11.5]} 13. a3 {[%clk 0:02:54.1]} 13... Rb8 {[%clk 0:02:04.4]} 14.
Rb1 {[%clk 0:02:50.2]} 14... h5 {[%clk 0:01:58.1]} 15. b4 {[%clk 0:02:49.4]}
15... axb4 {[%clk 0:01:56.6]} 16. axb4 {[%clk 0:02:50.3]} 16... b6 {[%clk
0:01:52.9]} 17. Na4 {[%clk 0:02:30.2]} 17... Rf6 {[%clk 0:01:46.3]} 18. c5
{[%clk 0:02:22.4]} 18... bxc5 {[%clk 0:01:23.7]} 19. bxc5 {[%clk 0:02:23.3]}
19... Rxb1 {[%clk 0:01:23.4]} 20. Qxb1 {[%clk 0:02:24.2]} 20... Naxc5 {[%clk
0:01:22.7]} 21. Nxc5 {[%clk 0:02:24.4]} 21... Nxc5 {[%clk 0:01:23.6]} 22. Rc1
{[%clk 0:02:18]} 22... Bf8 {[%clk 0:01:20]} 23. Bb5 {[%clk 0:02:04.3]} 23... Rg6
{[%clk 0:01:14.5]} 24. Qa2 {[%clk 0:01:10.4]} 24... g4 {[%clk 0:00:44.4]} 25.
Bxc5 {[%clk 0:01:08.7]} 25... dxc5 {[%clk 0:00:43.9]} 26. d6+ {[%clk 0:01:08.7]}
26... Be6 {[%clk 0:00:42.4]} 27. Bc4 {[%clk 0:01:08.9]} 27... Qxd6 {[%clk
0:00:40.7]} 28. Bxe6+ {[%clk 0:01:09.1]} 28... Qxe6 {[%clk 0:00:37]} 29. Qxe6+
{[%clk 0:01:08.5]} 29... Rxe6 {[%clk 0:00:37.9]} 30. Nc4 {[%clk 0:01:08.1]}
30... Kf7 {[%clk 0:00:32.1]} 31. Rd1 {[%clk 0:01:01.9]} 31... Bd6 {[%clk
0:00:31]} 32. Ra1 {[%clk 0:00:59.2]} 32... Re8 {[%clk 0:00:29.5]} 33. Ra6 {[%clk
0:00:52.7]} 33... Ke6 {[%clk 0:00:28.6]} 34. Na5 {[%clk 0:00:26]} 34... Rb8
{[%clk 0:00:24.4]} 35. h3 {[%clk 0:00:26.4]} 35... Rb1+ {[%clk 0:00:22.2]} 36.
Kf2 {[%clk 0:00:26.5]} 36... Rb2+ {[%clk 0:00:22.5]} 37. Kf1 {[%clk 0:00:26.6]}
37... gxf3 {[%clk 0:00:17.6]} 38. gxf3 {[%clk 0:00:26.6]} 38... Ra2 {[%clk
0:00:15.8]} 39. Ra8 {[%clk 0:00:25]} 39... Kd7 {[%clk 0:00:14.1]} 40. Ra7 {[%clk
0:00:24.3]} 40... c4 {[%clk 0:00:09.1]} 41. Nc6 {[%clk 0:00:24.6]} 41... Rxa7
{[%clk 0:00:08]} 42. Nxa7 {[%clk 0:00:25.5]} 42... c6 {[%clk 0:00:08.1]} 43. Ke2
{[%clk 0:00:23.5]} 43... Bc5 {[%clk 0:00:08.3]} 0-1

[Event "Early-Titled-Tuesday-Blitz-February-20-2024"]
[Site "Chess.com"]
[Date "2024.02.20"]
[Round "4"]
[White "CristianS27"]
[Black "N_I_Chess"]
[Result "0-1"]
[WhiteElo "2549"]
[BlackElo "2308"]
[TimeControl "180+1"]
[EndTime "8:39:28 PST"]
[Termination "N_I_Chess won by checkmate"]

1. e4 {[%clk 0:03:00.9]} 1... Nf6 {[%clk 0:02:59.5]} 2. e5 {[%clk 0:03:01.1]}
2... Nd5 {[%clk 0:02:59.5]} 3. d4 {[%clk 0:03:02]} 3... d6 {[%clk 0:02:59.3]} 4.
Nf3 {[%clk 0:03:02.9]} 4... dxe5 {[%clk 0:02:51.8]} 5. Nxe5 {[%clk 0:03:03.8]}
5... c6 {[%clk 0:02:52.1]} 6. Be2 {[%clk 0:03:02.9]} 6... Bf5 {[%clk 0:02:38.4]}
7. O-O {[%clk 0:03:01.1]} 7... Nd7 {[%clk 0:02:38.2]} 8. Nd3 {[%clk 0:02:59.4]}
8... e6 {[%clk 0:02:37.5]} 9. c4 {[%clk 0:02:58.3]} 9... Nc7 {[%clk 0:02:31.8]}
10. Nc3 {[%clk 0:02:58.2]} 10... Be7 {[%clk 0:02:30.8]} 11. Re1 {[%clk
0:02:50.2]} 11... O-O {[%clk 0:02:26.9]} 12. Bf3 {[%clk 0:02:49.9]} 12... Bf6
{[%clk 0:02:25.1]} 13. Nf4 {[%clk 0:02:42.5]} 13... Nb6 {[%clk 0:02:24.9]} 14.
d5 {[%clk 0:02:31.7]} 14... cxd5 {[%clk 0:02:20]} 15. cxd5 {[%clk 0:02:32.6]}
15... Bxc3 {[%clk 0:02:02.6]} 16. bxc3 {[%clk 0:02:30.4]} 16... Ncxd5 {[%clk
0:02:01.8]} 17. Nxd5 {[%clk 0:02:21.6]} 17... Nxd5 {[%clk 0:02:02.7]} 18. Qb3
{[%clk 0:02:02]} 18... Qa5 {[%clk 0:01:37.8]} 19. Bb2 {[%clk 0:01:38.7]} 19...
Nf4 {[%clk 0:01:27.2]} 20. Be4 {[%clk 0:00:46.7]} 20... Rad8 {[%clk 0:00:30.6]}
21. Ba3 {[%clk 0:00:36.9]} 21... Rfe8 {[%clk 0:00:28]} 22. Bb4 {[%clk
0:00:35.2]} 22... Qe5 {[%clk 0:00:15.6]} 23. Bxb7 {[%clk 0:00:32.5]} 23... Qf6
{[%clk 0:00:13.1]} 24. Bc6 {[%clk 0:00:27.9]} 24... Qg6 {[%clk 0:00:10]} 25. Qc4
{[%clk 0:00:24.7]} 25... Nd3 {[%clk 0:00:05.7]} 26. Bxe8 {[%clk 0:00:20.9]}
26... Nxe1 {[%clk 0:00:04]} 27. Bxf7+ {[%clk 0:00:21.2]} 27... Qxf7 {[%clk
0:00:02.7]} 28. Rxe1 {[%clk 0:00:22.1]} 28... Re8 {[%clk 0:00:02.2]} 29. Bc5
{[%clk 0:00:16]} 29... Qg6 {[%clk 0:00:02.9]} 30. Qf4 {[%clk 0:00:11.9]} 30...
h6 {[%clk 0:00:02.3]} 31. Bd4 {[%clk 0:00:11.7]} 31... Kh7 {[%clk 0:00:02.6]}
32. Qe5 {[%clk 0:00:11.1]} 32... Rf8 {[%clk 0:00:02.6]} 33. Re3 {[%clk
0:00:06.8]} 33... Bg4 {[%clk 0:00:01.6]} 34. Rg3 {[%clk 0:00:06.5]} 34... Qb1+
{[%clk 0:00:01.7]} 35. Qe1 {[%clk 0:00:05.9]} 35... Qxe1# {[%clk 0:00:02.4]} 0-1

[Event "Early-Titled-Tuesday-Blitz-February-20-2024"]
[Site "Chess.com"]
[Date "2024.02.20"]
[Round "4"]
[White "Muslim_player_05"]
[Black "RamyresCoelho"]
[Result "0-1"]
[WhiteElo "2474"]
[BlackElo "2259"]
[TimeControl "180+1"]
[EndTime "8:39:29 PST"]
[Termination "RamyresCoelho won on time"]

1. d4 {[%clk 0:03:00.9]} 1... Nf6 {[%clk 0:02:58.4]} 2. c4 {[%clk 0:03:00.8]}
2... g6 {[%clk 0:02:55.3]} 3. Nc3 {[%clk 0:03:00.9]} 3... d5 {[%clk 0:02:55.7]}
4. cxd5 {[%clk 0:03:01.8]} 4... Nxd5 {[%clk 0:02:56.6]} 5. e4 {[%clk 0:03:02.4]}
5... Nxc3 {[%clk 0:02:57.2]} 6. bxc3 {[%clk 0:03:03.3]} 6... Bg7 {[%clk
0:02:58.1]} 7. Be3 {[%clk 0:03:02.9]} 7... O-O {[%clk 0:02:59]} 8. Qd2 {[%clk
0:03:03.1]} 8... c5 {[%clk 0:02:59.9]} 9. Nf3 {[%clk 0:03:02.9]} 9... cxd4
{[%clk 0:03:00.8]} 10. cxd4 {[%clk 0:03:03.4]} 10... Nc6 {[%clk 0:03:00.5]} 11.
Rd1 {[%clk 0:03:00.7]} 11... Bg4 {[%clk 0:03:00.1]} 12. Be2 {[%clk 0:03:00.7]}
12... Bxf3 {[%clk 0:02:52.6]} 13. Bxf3 {[%clk 0:03:01.6]} 13... e5 {[%clk
0:02:52.7]} 14. d5 {[%clk 0:03:01.9]} 14... Nd4 {[%clk 0:02:52.8]} 15. Bxd4
{[%clk 0:03:02.4]} 15... exd4 {[%clk 0:02:53.7]} 16. O-O {[%clk 0:03:02.8]}
16... f5 {[%clk 0:02:50]} 17. exf5 {[%clk 0:02:39]} 17... Rxf5 {[%clk
0:02:50.9]} 18. Bg4 {[%clk 0:02:33.4]} 18... Rxd5 {[%clk 0:02:19.7]} 19. Be6+
{[%clk 0:02:33.2]} 19... Kh8 {[%clk 0:02:20.3]} 20. Bxd5 {[%clk 0:02:33.2]}
20... Qxd5 {[%clk 0:02:21.2]} 21. Rfe1 {[%clk 0:02:26.8]} 21... Rd8 {[%clk
0:02:16.1]} 22. Re7 {[%clk 0:02:13.8]} 22... d3 {[%clk 0:02:06.3]} 23. Rde1
{[%clk 0:01:46.2]} 23... Qb5 {[%clk 0:01:30.9]} 24. h4 {[%clk 0:01:10]} 24... h5
{[%clk 0:01:11.3]} 25. Rxg7 {[%clk 0:00:40.8]} 25... Kxg7 {[%clk 0:01:08.9]} 26.
Re7+ {[%clk 0:00:35.4]} 26... Kf6 {[%clk 0:01:04.7]} 27. Qe3 {[%clk 0:00:19.4]}
27... Qf5 {[%clk 0:00:52.8]} 28. Rh7 {[%clk 0:00:15.2]} 28... Rd7 {[%clk
0:00:30.3]} 29. Rh8 {[%clk 0:00:04.9]} 29... d2 {[%clk 0:00:22.4]} 30. Qc3+
{[%clk 0:00:03.9]} 30... Ke6 {[%clk 0:00:14.1]} 31. Re8+ {[%clk 0:00:03.4]}
31... Re7 {[%clk 0:00:14.1]} 32. Rxe7+ {[%clk 0:00:03.5]} 32... Kxe7 {[%clk
0:00:15]} 33. Qxd2 {[%clk 0:00:03.9]} 33... Qe6 {[%clk 0:00:14.8]} 34. Qb4+
{[%clk 0:00:02.4]} 34... Qd6 {[%clk 0:00:13]} 35. Qxb7+ {[%clk 0:00:02.5]} 35...
Ke6 {[%clk 0:00:13.2]} 0-1

[Event "Early-Titled-Tuesday-Blitz-February-20-2024"]
[Site "Chess.com"]
[Date "2024.02.20"]
[Round "4"]
[White "lluiss"]
[Black "Atousa"]
[Result "1/2-1/2"]
[WhiteElo "2186"]
[BlackElo "2445"]
[TimeControl "180+1"]
[EndTime "8:39:29 PST"]
[Termination "Game drawn by repetition"]

1. Nf3 {[%clk 0:03:00.9]} 1... d5 {[%clk 0:02:39.5]} 2. d4 {[%clk 0:02:59.7]}
2... c6 {[%clk 0:02:40]} 3. c4 {[%clk 0:02:58.9]} 3... Nf6 {[%clk 0:02:40.2]} 4.
cxd5 {[%clk 0:02:59.1]} 4... cxd5 {[%clk 0:02:39]} 5. Nc3 {[%clk 0:02:59.7]}
5... Nc6 {[%clk 0:02:37]} 6. Bf4 {[%clk 0:02:59.4]} 6... Bf5 {[%clk 0:02:35.9]}
7. e3 {[%clk 0:02:58.9]} 7... e6 {[%clk 0:02:36.1]} 8. Bd3 {[%clk 0:02:58.5]}
8... Bxd3 {[%clk 0:02:35.4]} 9. Qxd3 {[%clk 0:02:59.4]} 9... Bd6 {[%clk
0:02:35.1]} 10. Bxd6 {[%clk 0:02:59.5]} 10... Qxd6 {[%clk 0:02:30.6]} 11. O-O
{[%clk 0:03:00]} 11... O-O {[%clk 0:02:28.7]} 12. h3 {[%clk 0:03:00.6]} 12... a6
{[%clk 0:02:17.8]} 13. Rfc1 {[%clk 0:02:59.9]} 13... b5 {[%clk 0:02:14.9]} 14.
Nd2 {[%clk 0:02:52.4]} 14... Na5 {[%clk 0:01:59.1]} 15. b3 {[%clk 0:02:51.1]}
15... Rfc8 {[%clk 0:01:52.2]} 16. Ne2 {[%clk 0:02:50.9]} 16... h6 {[%clk
0:01:28.4]} 17. Nf4 {[%clk 0:02:41.1]} 17... Nc6 {[%clk 0:01:13.5]} 18. Qc3
{[%clk 0:02:18.2]} 18... Ne7 {[%clk 0:01:01.1]} 19. Qb2 {[%clk 0:02:17.3]} 19...
Nd7 {[%clk 0:00:46.6]} 20. Nd3 {[%clk 0:02:17]} 20... Nf5 {[%clk 0:00:33.6]} 21.
Rxc8+ {[%clk 0:02:08.8]} 21... Rxc8 {[%clk 0:00:31.3]} 22. Rc1 {[%clk
0:02:09.4]} 22... Qb8 {[%clk 0:00:23.9]} 23. Qa3 {[%clk 0:02:01.6]} 23... Rxc1+
{[%clk 0:00:21]} 24. Qxc1 {[%clk 0:02:00.5]} 24... Qb7 {[%clk 0:00:15.9]} 25.
Nb4 {[%clk 0:01:08.7]} 25... Ne7 {[%clk 0:00:11]} 26. a3 {[%clk 0:00:57.3]}
26... a5 {[%clk 0:00:10.6]} 27. Nd3 {[%clk 0:00:56.6]} 27... Qc6 {[%clk
0:00:09.9]} 28. Qxc6 {[%clk 0:00:52.9]} 28... Nxc6 {[%clk 0:00:10.8]} 29. b4
{[%clk 0:00:51.4]} 29... axb4 {[%clk 0:00:10.1]} 30. axb4 {[%clk 0:00:48.8]}
30... Nb6 {[%clk 0:00:10.5]} 31. Kf1 {[%clk 0:00:48.3]} 31... Nc4 {[%clk
0:00:08.1]} 32. Ke2 {[%clk 0:00:46.1]} 32... Nxd2 {[%clk 0:00:06.5]} 33. Kxd2
{[%clk 0:00:45.8]} 33... Kf8 {[%clk 0:00:07.3]} 34. Kc3 {[%clk 0:00:45.7]} 34...
Ke7 {[%clk 0:00:07.8]} 35. Ne5 {[%clk 0:00:43.4]} 35... Nxe5 {[%clk 0:00:07.3]}
36. dxe5 {[%clk 0:00:44.3]} 36... Kd7 {[%clk 0:00:06.1]} 37. Kd4 {[%clk
0:00:43.4]} 37... Kc6 {[%clk 0:00:06.8]} 38. Kc3 {[%clk 0:00:43.5]} 38... Kb6
{[%clk 0:00:06.9]} 39. Kd4 {[%clk 0:00:43.7]} 39... Kc6 {[%clk 0:00:07.5]} 40.
Kc3 {[%clk 0:00:44]} 40... f6 {[%clk 0:00:07.9]} 41. Kd4 {[%clk 0:00:43.1]}
41... h5 {[%clk 0:00:07.8]} 42. f4 {[%clk 0:00:42.6]} 42... h4 {[%clk
0:00:08.1]} 43. exf6 {[%clk 0:00:38.8]} 43... gxf6 {[%clk 0:00:08]} 44. e4
{[%clk 0:00:39.5]} 44... dxe4 {[%clk 0:00:07.6]} 45. Kxe4 {[%clk 0:00:40.4]}
45... Kd6 {[%clk 0:00:07.7]} 46. Kf3 {[%clk 0:00:40.3]} 46... f5 {[%clk
0:00:07.3]} 47. g3 {[%clk 0:00:40.2]} 47... hxg3 {[%clk 0:00:06.8]} 48. Kxg3
{[%clk 0:00:40.2]} 48... Ke7 {[%clk 0:00:07.5]} 49. Kf3 {[%clk 0:00:39.3]} 49...
Kf6 {[%clk 0:00:07.8]} 50. h4 {[%clk 0:00:35.2]} 50... Kg6 {[%clk 0:00:08.1]}
51. Kg3 {[%clk 0:00:30.9]} 51... Kh5 {[%clk 0:00:09]} 52. Kh3 {[%clk 0:00:31]}
52... Kg6 {[%clk 0:00:09]} 53. Kg3 {[%clk 0:00:31.4]} 53... Kh5 {[%clk
0:00:09.8]} 54. Kh3 {[%clk 0:00:31.7]} 54... Kg6 {[%clk 0:00:10.4]} 55. Kg3
{[%clk 0:00:32.1]} 1/2-1/2

[Event "Early-Titled-Tuesday-Blitz-February-20-2024"]
[Site "Chess.com"]
[Date "2024.02.20"]
[Round "4"]
[White "komogro"]
[Black "Francesco_Bernoulli"]
[Result "1-0"]
[WhiteElo "2526"]
[BlackElo "2314"]
[TimeControl "180+1"]
[EndTime "8:39:30 PST"]
[Termination "komogro won by resignation"]

1. e4 {[%clk 0:03:00.9]} 1... c6 {[%clk 0:02:59.6]} 2. c4 {[%clk 0:02:58.4]}
2... d5 {[%clk 0:03:00.5]} 3. cxd5 {[%clk 0:02:59.3]} 3... cxd5 {[%clk
0:03:01.4]} 4. exd5 {[%clk 0:02:59.9]} 4... Nf6 {[%clk 0:03:01.8]} 5. Nc3 {[%clk
0:03:00.4]} 5... Nxd5 {[%clk 0:03:00.1]} 6. Bc4 {[%clk 0:03:00.8]} 6... Nb6
{[%clk 0:02:57.1]} 7. Bb3 {[%clk 0:02:59.6]} 7... Nc6 {[%clk 0:02:55.9]} 8. Nf3
{[%clk 0:02:59.4]} 8... Bf5 {[%clk 0:02:55.9]} 9. d4 {[%clk 0:02:56.9]} 9... e6
{[%clk 0:02:56.3]} 10. O-O {[%clk 0:02:55.4]} 10... Be7 {[%clk 0:02:56.1]} 11.
Re1 {[%clk 0:02:55.3]} 11... O-O {[%clk 0:02:55.6]} 12. h3 {[%clk 0:02:48.5]}
12... Nb4 {[%clk 0:02:52.6]} 13. Ne5 {[%clk 0:02:38.2]} 13... N4d5 {[%clk
0:02:51.2]} 14. Be3 {[%clk 0:02:37.1]} 14... Nxe3 {[%clk 0:02:50.9]} 15. fxe3
{[%clk 0:02:35.5]} 15... Bg6 {[%clk 0:02:50.2]} 16. Rf1 {[%clk 0:02:21.2]} 16...
Bf6 {[%clk 0:02:48.1]} 17. Ng4 {[%clk 0:02:11.2]} 17... Be7 {[%clk 0:02:43.3]}
18. Qf3 {[%clk 0:02:07.6]} 18... Rb8 {[%clk 0:02:10]} 19. Rad1 {[%clk
0:02:06.1]} 19... Bb4 {[%clk 0:02:01.3]} 20. Kh1 {[%clk 0:02:02.9]} 20... Qh4
{[%clk 0:01:49]} 21. e4 {[%clk 0:01:57.4]} 21... Bh5 {[%clk 0:01:47]} 22. d5
{[%clk 0:01:29.9]} 22... exd5 {[%clk 0:01:35.1]} 23. exd5 {[%clk 0:01:28.7]}
23... Bxc3 {[%clk 0:01:19.1]} 24. bxc3 {[%clk 0:01:27.2]} 24... Bxg4 {[%clk
0:01:18.4]} 25. Qxg4 {[%clk 0:01:26.9]} 25... Qxg4 {[%clk 0:01:17.9]} 26. hxg4
{[%clk 0:01:27.8]} 26... Nc8 {[%clk 0:01:14.6]} 27. d6 {[%clk 0:01:25.1]} 27...
Nb6 {[%clk 0:01:12.2]} 28. Rde1 {[%clk 0:00:57.6]} 28... Nc8 {[%clk 0:00:36.4]}
29. d7 {[%clk 0:00:49.7]} 29... Nd6 {[%clk 0:00:35.6]} 30. Re7 {[%clk 0:00:50]}
30... Rbd8 {[%clk 0:00:25.5]} 31. Rd1 {[%clk 0:00:42.3]} 31... Nb5 {[%clk
0:00:24.4]} 32. c4 {[%clk 0:00:27.5]} 32... Nc7 {[%clk 0:00:21.2]} 33. c5 {[%clk
0:00:24.7]} 33... Na6 {[%clk 0:00:19.4]} 34. Rf1 {[%clk 0:00:21.9]} 34... Nxc5
{[%clk 0:00:16.8]} 35. Rfxf7 {[%clk 0:00:19.8]} 35... Rxf7 {[%clk 0:00:17]} 36.
Bxf7+ {[%clk 0:00:18.7]} 36... Kf8 {[%clk 0:00:16.3]} 37. Re8+ {[%clk
0:00:19.6]} 37... Kxf7 {[%clk 0:00:15.4]} 38. Rxd8 {[%clk 0:00:18.1]} 38... Ke7
{[%clk 0:00:16.1]} 39. Rg8 {[%clk 0:00:17.7]} 39... Nxd7 {[%clk 0:00:15.9]} 40.
Rxg7+ {[%clk 0:00:17.6]} 40... Kd6 {[%clk 0:00:15.6]} 41. Rxh7 {[%clk
0:00:17.6]} 41... b5 {[%clk 0:00:15.7]} 42. g5 {[%clk 0:00:17.9]} 42... Ne5
{[%clk 0:00:15.7]} 43. Rxa7 {[%clk 0:00:15.8]} 43... Ke6 {[%clk 0:00:15.3]} 44.
Rb7 {[%clk 0:00:15.4]} 44... Kf5 {[%clk 0:00:14.9]} 45. Rxb5 {[%clk 0:00:15.2]}
1-0

[Event "Early-Titled-Tuesday-Blitz-February-20-2024"]
[Site "Chess.com"]
[Date "2024.02.20"]
[Round "4"]
[White "Louis-Paulsen-Fan"]
[Black "ozen_metehan"]
[Result "1-0"]
[WhiteElo "2223"]
[BlackElo "2468"]
[TimeControl "180+1"]
[EndTime "8:39:31 PST"]
[Termination "Louis-Paulsen-Fan won by checkmate"]

1. d4 {[%clk 0:03:00.9]} 1... Nf6 {[%clk 0:02:59.6]} 2. Nf3 {[%clk 0:03:00.9]}
2... g6 {[%clk 0:02:59.3]} 3. c4 {[%clk 0:03:00.7]} 3... Bg7 {[%clk 0:02:59.2]}
4. Nc3 {[%clk 0:03:01.3]} 4... d5 {[%clk 0:02:57.9]} 5. cxd5 {[%clk 0:03:01.1]}
5... Nxd5 {[%clk 0:02:58.8]} 6. Qb3 {[%clk 0:03:01.5]} 6... Nxc3 {[%clk
0:02:55.6]} 7. bxc3 {[%clk 0:03:02.4]} 7... O-O {[%clk 0:02:55.9]} 8. Ba3 {[%clk
0:03:02.6]} 8... b6 {[%clk 0:02:51.7]} 9. e3 {[%clk 0:03:02.6]} 9... c5 {[%clk
0:02:49.3]} 10. Be2 {[%clk 0:02:59.3]} 10... Bb7 {[%clk 0:02:47.5]} 11. O-O
{[%clk 0:02:58.5]} 11... Nd7 {[%clk 0:02:47.2]} 12. Rad1 {[%clk 0:02:58.4]}
12... Qc7 {[%clk 0:02:44.4]} 13. d5 {[%clk 0:02:55.5]} 13... Ne5 {[%clk
0:02:34]} 14. c4 {[%clk 0:02:55.5]} 14... Nxf3+ {[%clk 0:02:25]} 15. Bxf3 {[%clk
0:02:56.4]} 15... Rfd8 {[%clk 0:02:24.1]} 16. Bb2 {[%clk 0:02:51.7]} 16... Be5
{[%clk 0:02:21.1]} 17. h3 {[%clk 0:02:40.8]} 17... Qd6 {[%clk 0:01:56]} 18. Be2
{[%clk 0:02:22.8]} 18... Qf6 {[%clk 0:01:54.4]} 19. Bxe5 {[%clk 0:02:20.1]}
19... Qxe5 {[%clk 0:01:55.3]} 20. f4 {[%clk 0:02:09.5]} 20... Qf6 {[%clk
0:01:54.8]} 21. Bf3 {[%clk 0:02:05.1]} 21... Rac8 {[%clk 0:01:41.1]} 22. g3
{[%clk 0:02:01.7]} 22... Ba6 {[%clk 0:01:36]} 23. e4 {[%clk 0:01:53.1]} 23... e5
{[%clk 0:01:33.3]} 24. f5 {[%clk 0:01:38.3]} 24... b5 {[%clk 0:01:11.1]} 25.
fxg6 {[%clk 0:01:13.4]} 25... Qxg6 {[%clk 0:01:04.1]} 26. Bg4 {[%clk 0:01:02.6]}
26... bxc4 {[%clk 0:00:50.5]} 27. Qf3 {[%clk 0:01:02.4]} 27... Rc7 {[%clk
0:00:39.1]} 28. Bh5 {[%clk 0:00:51]} 28... Qg7 {[%clk 0:00:36.6]} 29. Kh2 {[%clk
0:00:35.1]} 29... Rb7 {[%clk 0:00:30.2]} 30. Rf2 {[%clk 0:00:33.9]} 30... Rdb8
{[%clk 0:00:16.4]} 31. Rdf1 {[%clk 0:00:26.2]} 31... Rf8 {[%clk 0:00:15.5]} 32.
Qa3 {[%clk 0:00:24.8]} 32... Bb5 {[%clk 0:00:13]} 33. Qxc5 {[%clk 0:00:23]}
33... Qg5 {[%clk 0:00:09.7]} 34. Rf5 {[%clk 0:00:18.4]} 34... Qd2+ {[%clk
0:00:05.9]} 35. R1f2 {[%clk 0:00:18.7]} 35... Qd4 {[%clk 0:00:05.7]} 36. Qa3
{[%clk 0:00:12.8]} 36... c3 {[%clk 0:00:03.5]} 37. Qc1 {[%clk 0:00:11.8]} 37...
Be8 {[%clk 0:00:03.2]} 38. Qg5+ {[%clk 0:00:11.3]} 38... Kh8 {[%clk 0:00:03.4]}
39. Qf6+ {[%clk 0:00:11.8]} 39... Kg8 {[%clk 0:00:03.7]} 40. Rg5# {[%clk
0:00:12.1]} 1-0